bitfinex-derivatives/quotes_ETHF0:USTF0_20230830
["timestamp","ask_amount","ask_price","bid_price","bid_amount"]
[1693422484932,10.45829664,1704.9,1704.7,5.299]
[1693422485127,12.72823312,1704.9,1704.7,5.299]
[1693422485826,12.72823312,1704.9,1704.7,6.73258176]
[1693422486733,12.72823312,1704.9,1704.7,9.00251824]
[1693422486928,12.72823312,1704.9,1704.8,5.299]
[1693422489235,12.72823312,1704.9,1704.7,5.299]
[1693422489831,12.72823312,1704.9,1704.7,6.73258176]
[1693422490435,0.45829664,1704.9,1704.8,5.299]
[1693422490638,5.0646,1705.1,1704.9,5.299]
[1693422490935,5.0646,1705.1,1705.0,9.00251824]
[1693422492034,5.52381762,1705.1,1705.0,9.00251824]
[1693422495933,5.52381762,1705.1,1704.9,5.299]
[1693422496639,7.7937541,1705.1,1704.9,5.299]
[1693422499537,7.7937541,1705.1,1705.0,5.299]
[1693422503944,7.7937541,1705.1,1705.0,6.73258176]
[1693422504745,7.7937541,1705.1,1705.0,5.299]
[1693422506147,7.7937541,1705.1,1705.0,6.73258176]
[1693422512255,7.7937541,1705.1,1705.0,5.299]
[1693422513949,7.7937541,1705.1,1705.0,6.73258176]
[1693422514150,5.52381762,1705.1,1705.0,9.00251824]
[1693422516757,5.52381762,1705.1,1705.0,10.53389104]
[1693422517460,5.52381762,1705.1,1705.0,13.46834245]
[1693422517657,5.52381762,1705.1,1705.0,10.53389104]
[1693422517850,5.52381762,1705.1,1705.0,6.8303728]
[1693422518352,5.52381762,1705.1,1705.0,1.5313728]
[1693422518657,10.0,1704.6,1704.5,0.97866266]
[1693422518854,5.299,1704.7,1704.5,2.41224442]
[1693422519055,2.26993648,1704.7,1704.6,2.93498347]
[1693422519453,2.26993648,1704.7,1704.5,6.73258176]
[1693422522153,2.5688,1705.0,1704.6,5.299]
[1693422522351,2.5688,1705.0,1704.7,5.299]
[1693422522548,2.5688,1705.0,1704.8,1.43358176]
[1693422522956,14.29417738,1705.1,1704.8,1.43358176]
[1693422523155,15.19221909,1705.1,1704.8,1.43358176]
[1693422523357,15.19221909,1705.1,1704.8,3.70351824]
[1693422525461,3.84222328,1705.0,1704.8,3.70351824]
[1693422525961,3.84222328,1705.0,1704.8,1.43358176]
[1693422526162,2.26993648,1704.9,1704.8,1.43358176]
[1693422526962,6.11215976,1704.9,1704.7,5.299]
[1693422527165,6.11215976,1704.9,1704.7,6.73258176]
[1693422528465,3.84222328,1704.8,1704.7,6.73258176]
[1693422529870,2.26993648,1704.9,1704.7,6.73258176]
[1693422530172,3.84293736,1704.8,1704.7,6.73258176]
[1693422530371,3.84294249,1704.8,1704.7,6.73258176]
[1693422530568,6.8877357,1704.9,1704.7,6.73258176]
[1693422531570,6.8877357,1704.9,1704.7,5.299]
[1693422532166,4.61779922,1704.8,1704.7,5.299]
[1693422532569,4.61779922,1704.8,1704.7,6.73258176]
[1693422535069,6.8877357,1704.9,1704.7,6.73258176]
[1693422535270,7.35590422,1704.9,1704.7,6.73258176]
[1693422535770,4.61779922,1704.8,1704.7,6.73258176]
[1693422535971,7.35590422,1704.9,1704.7,6.73258176]
[1693422536275,4.61779922,1704.8,1704.7,6.73258176]
[1693422542382,5.38743242,1704.8,1704.5,5.299]
[1693422542581,4.61310451,1704.7,1704.5,7.8703]
[1693422543579,4.61310451,1704.7,1704.5,9.30388176]
[1693422543781,7.06900451,1704.8,1704.6,7.56893648]
[1693422544174,7.06900451,1704.8,1704.7,1.43358176]
[1693422547281,7.06900451,1704.8,1704.6,7.56893648]
[1693422547782,7.06903318,1704.8,1704.6,7.56893648]
[1693422549381,7.06903318,1704.8,1704.6,9.00251824]
[1693422552692,7.9350307,1704.8,1704.6,9.00251824]
[1693422557103,7.06903318,1704.8,1704.6,9.00251824]
[1693422560609,4.61313318,1704.7,1704.6,9.00251824]
[1693422563809,10.10782519,1704.8,1704.6,9.00251824]
[1693422565612,5.38198871,1704.7,1704.6,9.00251824]
[1693422566416,4.61962342,1704.7,1704.6,9.00251824]
[1693422568414,4.61962342,1704.7,1704.6,7.56893648]
[1693422568614,4.61962342,1704.7,1704.6,9.00251824]
[1693422576621,5.08182017,1704.7,1704.6,9.00251824]
[1693422577220,5.08182017,1704.7,1704.6,5.299]
[1693422578720,5.08182017,1704.7,1704.6,6.73258176]
[1693422580724,5.08182017,1704.7,1704.6,5.299]
[1693422582021,5.08182017,1704.7,1704.5,7.87909946]
[1693422582223,7.60182017,1704.7,1704.5,7.87909946]
[1693422583023,6.8895599,1704.6,1704.5,0.00879946]
[1693422583218,12.1885599,1704.6,1704.5,0.00879946]
[1693422583418,14.6328599,1704.6,1704.5,0.00879946]
[1693422583615,15.39522519,1704.6,1704.5,0.00879946]
[1693422584527,9.33349005,1704.6,1704.5,0.00879946]
[1693422585029,6.88919005,1704.6,1704.5,0.00879946]
[1693422585329,6.88919005,1704.6,1704.5,2.53539946]
[1693422585721,6.88919005,1704.6,1704.5,3.96898122]
[1693422591930,6.88808762,1704.6,1704.5,3.96898122]
[1693422592631,6.88808762,1704.6,1704.5,2.53539946]
[1693422594726,6.88808762,1704.6,1704.5,3.96898122]
[1693422596828,6.88808762,1704.6,1704.5,2.53539946]
[1693422600933,10.0,1704.5,1704.0,7.59294299]
[1693422601143,3.84807575,1704.2,1704.0,5.299]
[1693422601435,9.91715114,1704.4,1704.1,2.4888]
[1693422601636,3.84834737,1704.2,1704.1,2.4888]
[1693422601935,3.84827911,1704.2,1704.1,2.4888]
[1693422603938,3.84827911,1704.2,1704.1,3.92238176]
[1693422604534,3.84827911,1704.2,1704.1,2.4888]
[1693422606444,3.84827911,1704.2,1704.1,9.22138176]
[1693422608041,3.84827911,1704.3,1704.1,9.22138176]
[1693422609235,3.84827911,1704.3,1704.1,11.49131824]
[1693422612942,0.45813177,1704.3,1704.1,11.49131824]
[1693422613142,9.14727911,1704.4,1704.1,11.49131824]
[1693422615143,9.619652,1704.4,1704.1,11.49131824]
[1693422621847,4.320652,1704.4,1704.2,5.299]
[1693422622240,4.320652,1704.4,1704.3,11.50291824]
[1693422622450,0.47237289,1704.4,1704.3,7.7994]
[1693422622745,3.84827911,1704.5,1704.3,11.50291824]
[1693422623047,3.84827911,1704.5,1704.4,5.299]
[1693422631756,3.85146163,1704.5,1704.4,5.299]
[1693422635658,4.32016594,1704.5,1704.4,5.299]
[1693422641766,0.47188683,1704.5,1704.4,5.299]
[1693422641967,0.47188683,1704.5,1704.3,11.50291824]
[1693422642167,2.94108683,1704.5,1704.3,11.50291824]
[1693422643066,6.78936594,1704.5,1704.3,11.50291824]
[1693422647869,6.78936594,1704.5,1704.3,10.06933648]
[1693422648065,6.78936594,1704.5,1704.3,7.7994]
[1693422650064,2.94108683,1704.5,1704.3,7.7994]
[1693422650472,6.78936594,1704.5,1704.3,7.7994]
[1693422651168,2.94108683,1704.5,1704.3,7.7994]
[1693422651564,6.78936594,1704.5,1704.3,7.7994]
[1693422651767,6.78936594,1704.5,1704.3,9.23298176]
[1693422655475,6.78936594,1704.5,1704.3,7.7994]
[1693422658477,3.84827911,1704.4,1704.3,7.7994]
[1693422658676,3.84827911,1704.4,1704.3,9.23298176]
[1693422658873,3.85145434,1704.4,1704.3,9.23298176]
[1693422660879,3.85145434,1704.4,1704.3,7.7994]
[1693422661175,3.85145434,1704.4,1704.3,9.23298176]
[1693422661981,7.57211171,1704.4,1704.1,7.9238]
[1693422662181,3.84803834,1704.3,1704.1,7.6998]
[1693422662383,3.84803834,1704.2,1704.1,2.4008]
[1693422662572,6.11797482,1704.2,1704.1,2.4008]
[1693422662777,6.1211177,1704.2,1704.1,2.4008]
[1693422663779,7.57207936,1704.2,1703.9,1.5264555]
[1693422663983,3.8484958,1704.0,1703.8,7.7445]
[1693422664287,2.26993648,1703.9,1703.8,7.7445]
[1693422664482,6.4598958,1704.1,1703.8,7.7445]
[1693422664676,6.1215949,1704.0,1703.8,7.7445]
[1693422665284,2.2730991,1704.0,1703.8,7.7445]
[1693422665788,0.00316262,1704.0,1703.8,9.17808176]
[1693422665985,0.00316262,1704.0,1703.9,5.299]
[1693422666282,0.00316262,1704.0,1703.9,7.56893648]
[1693422666678,6.5105958,1704.3,1703.9,10.15083648]
[1693422666877,6.5105958,1704.3,1704.1,5.299]
[1693422667083,16.5105958,1704.3,1704.1,7.56893648]
[1693422667283,16.5105958,1704.3,1704.2,2.5888]
[1693422667581,16.50692888,1704.3,1704.2,2.5888]
[1693422667784,12.66526628,1704.3,1704.2,2.5888]
[1693422668985,16.50962642,1704.3,1704.2,2.5888]
[1693422669179,2.66526628,1704.3,1704.2,2.5888]
[1693422669386,16.50934938,1704.3,1704.2,2.5888]
[1693422669588,12.66526628,1704.3,1704.2,2.5888]
[1693422670290,16.50896003,1704.3,1704.2,2.5888]
[1693422671891,21.80796003,1704.3,1704.2,2.5888]
[1693422672993,17.96426628,1704.3,1704.2,2.5888]
[1693422674696,21.80660171,1704.3,1704.2,2.5888]
[1693422677896,17.96426628,1704.3,1704.2,2.5888]
[1693422678198,21.80588773,1704.3,1704.2,2.5888]
[1693422678788,22.28381443,1704.3,1704.2,2.5888]
[1693422680508,6.98481443,1704.3,1704.2,4.02238176]
[1693422680696,4.32271443,1704.3,1704.2,9.32138176]
[1693422680891,0.48109298,1704.3,1704.2,9.32138176]
[1693422681495,0.00316628,1704.3,1704.2,9.32138176]
[1693422681701,6.91752576,1704.5,1704.2,9.32138176]
[1693422681996,6.91666479,1704.5,1704.4,5.299]
[1693422682500,6.91666479,1704.5,1704.4,7.7975]
[1693422682697,6.91984564,1704.5,1704.4,2.4985]
[1693422684898,3.07908516,1704.5,1704.4,2.4985]
[1693422685098,8.37808516,1704.5,1704.4,2.4985]
[1693422685804,8.37808516,1704.5,1704.2,2.5621]
[1693422685996,6.11125675,1704.4,1704.2,5.0568]
[1693422686398,6.11125675,1704.4,1704.2,2.4947]
[1693422686801,0.00304162,1704.3,1704.2,2.4947]
[1693422687003,0.00304162,1704.3,1704.2,3.92828176]
[1693422687505,0.00304162,1704.3,1704.2,2.4947]
[1693422687895,6.11125675,1704.4,1704.2,3.92828176]
[1693422688703,0.00304162,1704.3,1704.2,3.92828176]
[1693422689703,6.11125675,1704.4,1704.2,3.92828176]
[1693422690709,0.00291404,1704.3,1704.2,3.92828176]
[1693422691701,6.11125675,1704.4,1704.2,3.92828176]
[1693422691906,11.41025675,1704.4,1704.2,3.92828176]
[1693422692501,11.41905828,1704.4,1704.2,3.92828176]
[1693422692705,0.00291404,1704.3,1704.2,3.92828176]
[1693422693807,11.41905828,1704.4,1704.2,3.92828176]
[1693422694800,0.00291404,1704.3,1704.2,3.92828176]
[1693422695703,11.41905828,1704.4,1704.2,3.92828176]
[1693422696709,0.00291404,1704.3,1704.2,3.92828176]
[1693422697925,11.41905828,1704.4,1704.2,3.92828176]
[1693422698126,11.41905828,1704.4,1704.2,2.4947]
[1693422698520,3.84132027,1704.3,1704.2,2.4947]
[1693422698720,3.84423431,1704.3,1704.2,2.4947]
[1693422699426,3.84423431,1704.3,1704.2,3.92828176]
[1693422701930,3.84423431,1704.3,1704.2,2.4947]
[1693422702931,0.00291404,1704.3,1704.2,3.92828176]
[1693422703433,3.84423431,1704.3,1704.2,3.92828176]
[1693422705432,3.84423431,1704.3,1704.2,9.22728176]
[1693422706131,0.00291404,1704.3,1704.2,9.22728176]
[1693422706736,3.8501218,1704.4,1704.2,9.22728176]
[1693422707837,0.00291404,1704.3,1704.2,9.22728176]
[1693422709035,3.8501218,1704.4,1704.2,9.22728176]
[1693422709836,3.8501218,1704.4,1704.3,2.26993648]
[1693422714742,3.85304312,1704.4,1704.3,2.26993648]
[1693422717341,9.15204312,1704.4,1704.3,2.26993648]
[1693422717938,5.299,1704.4,1704.3,2.26993648]
[1693422718143,5.299,1704.4,1704.3,3.70351824]
[1693422718543,5.299,1704.4,1704.3,1.43358176]
[1693422719046,5.299,1704.4,1704.2,2.4947]
[1693422719248,5.299,1704.4,1704.2,6.19821824]
[1693422721952,4.9096,1704.8,1704.2,11.49721824]
[1693422721953,5.299,1704.5,1704.2,11.49721824]
[1693422725757,5.299,1704.5,1704.1,6.21131098]
[1693422725758,5.299,1704.3,1704.1,1.52440439]
[1693422725952,10.0,1704.4,1704.0,4.13800439]
[1693422725953,5.299,1704.2,1704.0,4.13800439]
[1693422727861,5.299,1704.2,1704.0,2.6136]
[1693422728256,5.299,1704.1,1704.0,2.6136]
[1693422728657,5.299,1704.1,1703.8,1.52440439]
[1693422728856,5.299,1703.9,1703.8,2.4839]
[1693422730559,5.299,1704.0,1703.8,3.91748176]
[1693422733356,5.299,1704.0,1703.9,2.26993648]
[1693422736663,5.299,1704.0,1703.8,6.54918176]
[1693422739570,2.5211,1704.1,1703.8,11.84818176]
[1693422744270,2.5211,1704.1,1703.9,2.26993648]
[1693422744470,2.5211,1704.1,1704.0,2.5729]
[1693422744764,3.00184314,1704.1,1704.0,2.5729]
[1693422749469,8.30084314,1704.1,1703.6,0.46942788]
[1693422749671,5.299,1703.8,1703.7,2.6281]
[1693422758987,15.299,1703.8,1703.6,2.4842]
[1693422759286,5.299,1703.7,1703.6,2.4842]
[1693422763490,5.76842753,1703.8,1703.6,1.43358176]
[1693422763688,5.76842753,1703.8,1703.6,5.41774385]
[1693422764090,5.76842753,1703.8,1703.6,7.70983699]
[1693422764290,5.76842753,1703.8,1703.7,1.52806209]
[1693422764684,0.48074314,1704.1,1703.7,3.79799857]
[1693422764885,5.299,1704.2,1703.9,5.299]
[1693422765195,5.299,1704.2,1704.0,3.70351824]
[1693422768297,5.299,1704.2,1704.0,6.18081824]
[1693422771599,5.299,1704.1,1704.0,2.4773]
[1693422789609,5.299,1704.1,1703.8,7.8967]
[1693422789811,5.299,1703.9,1703.5,6.82706209]
[1693422790008,5.299,1703.9,1703.6,4.977]
[1693422790212,7.7063,1703.9,1703.6,4.977]
[1693422791903,5.299,1703.7,1703.6,4.977]
[1693422794510,5.299,1703.7,1703.6,2.4693]
[1693422807922,5.76605313,1703.7,1703.6,2.4693]
[1693422813327,5.76605313,1703.7,1703.6,3.90288176]
[1693422822133,0.46705313,1703.7,1703.6,3.90288176]
[1693422822335,5.299,1703.8,1703.6,3.90288176]
[1693422826939,5.299,1703.7,1703.6,2.4693]
[1693422836644,5.299,1703.7,1703.6,3.90288176]
[1693422837146,5.299,1703.7,1703.6,2.4693]
[1693422838942,5.76970432,1703.7,1703.6,2.4693]
[1693422841947,5.76970432,1703.7,1703.6,3.90288176]
[1693422842142,0.47070432,1703.7,1703.6,3.90288176]
[1693422842348,5.299,1703.8,1703.6,3.90288176]
[1693422842642,0.47992106,1704.0,1703.7,7.56893648]
[1693422842841,20.69110914,1704.2,1703.8,5.299]
[1693422843042,20.69110914,1704.2,1703.9,2.26993648]
[1693422843043,21.15035047,1704.2,1703.9,2.26993648]
[1693422843244,21.15035047,1704.2,1704.0,1.43358176]
[1693422843443,21.15035047,1704.2,1704.0,3.83618176]
[1693422845549,15.75824133,1704.2,1704.0,3.83618176]
[1693422848950,15.75824133,1704.2,1704.1,2.26993648]
[1693422849549,15.75824133,1704.2,1704.0,3.83618176]
[1693422850049,5.299,1704.1,1704.0,2.4026]
[1693422852955,5.299,1704.1,1703.7,5.299]
[1693422853255,5.299,1703.8,1703.7,2.6487]
[1693422853456,5.299,1703.8,1703.7,4.08228176]
[1693422856963,5.299,1703.8,1703.7,2.6487]
[1693422860272,5.299,1703.8,1703.6,2.5134]
[1693422860472,5.299,1703.7,1703.5,2.5376]
[1693422860772,5.299,1703.6,1703.5,2.5376]
[1693422867778,5.299,1703.6,1703.2,7.29887627]
[1693422868074,5.299,1703.6,1703.3,5.3027]
[1693422868575,5.299,1703.6,1703.4,1.43358176]
[1693422870276,5.299,1703.6,1703.5,2.6627]
[1693422873181,5.77872278,1703.6,1703.5,2.6627]
[1693422879978,0.47972278,1703.6,1703.5,7.9617]
[1693422880176,10.00880513,1703.7,1703.5,7.9617]
[1693422880382,10.00880513,1703.7,1703.6,3.70351824]
[1693422881883,15.30780513,1703.7,1703.6,3.70351824]
[1693422882883,10.00880513,1703.7,1703.6,3.70351824]
[1693422885081,0.00880513,1703.7,1703.6,3.70351824]
[1693422887480,0.00880513,1703.7,1703.5,10.4971]
[1693422888378,0.00880513,1703.7,1703.6,1.43358176]
[1693422890890,0.00880513,1703.7,1703.6,3.70351824]
[1693422905102,1e-08,1703.7,1703.6,9.00251824]
[1693422906002,1e-08,1703.7,1703.6,10.52999163]
[1693422907400,5.29900001,1703.7,1703.5,4.19017339]
[1693422907700,5.29900001,1703.7,1703.4,1.53627852]
[1693422907906,5.29900001,1703.7,1703.4,6.83527852]
[1693422908104,5.29900001,1703.7,1703.4,5.30780513]
[1693422912301,5.29900001,1703.7,1703.4,7.57774161]
[1693422914406,5.29900001,1703.7,1703.5,1.43358176]
[1693422917303,5.77487836,1703.7,1703.5,1.43358176]
[1693422920211,5.77487836,1703.7,1703.4,0.00880513]
[1693422922015,5.299,1703.6,1703.4,0.00880513]
[1693422922408,7.7751,1703.6,1703.4,0.00880513]
[1693422923715,7.7751,1703.6,1703.4,1.44238689]
[1693422930517,7.7751,1703.6,1703.5,2.6023]
[1693422931920,7.77807122,1703.6,1703.5,2.6023]
[1693422941025,7.77807122,1703.6,1703.4,0.00880513]
[1693422941226,5.299,1703.5,1703.4,0.00880513]
[1693422941423,15.299,1703.5,1703.4,0.00880513]
[1693422941931,15.30196518,1703.5,1703.4,0.00880513]
[1693422947434,15.30196518,1703.5,1703.4,1.44238689]
[1693422948239,15.30196518,1703.5,1703.4,0.00880513]
[1693422954938,15.77663623,1703.5,1703.4,0.00880513]
[1693422958340,15.77663623,1703.5,1703.4,1.44238689]
[1693422960245,15.77663623,1703.5,1703.4,0.00880513]
[1693422971959,15.77367105,1703.5,1703.4,0.00880513]
[1693422985758,16.66696036,1703.5,1703.4,0.00880513]
[1693422989152,16.66696036,1703.5,1703.4,1e-08]
[1693422989364,10.0,1703.3,1703.1,2.657]
[1693422989566,5.299,1703.2,1702.9,1.52747339]
[1693422989763,15.38422009,1703.3,1702.9,1.52747339]
[1693422989764,5.299,1703.1,1703.0,3.95327339]
[1693422989955,5.299,1703.1,1703.0,2.4258]
[1693422990665,15.299,1703.1,1703.0,2.4258]
[1693422991766,15.299,1703.1,1702.7,6.82647339]
[1693422991965,5.299,1702.9,1702.8,2.5154]
[1693422992163,5.299,1702.9,1702.8,4.9412]
[1693423000272,5.299,1702.9,1702.8,6.37478176]
[1693423000473,5.299,1703.0,1702.8,6.37478176]
[1693423001375,0.46449094,1703.1,1702.9,7.56893648]
[1693423001678,16.66696036,1703.5,1703.0,6.73258176]
[1693423001869,11.36796036,1703.5,1703.3,5.299]
[1693423002069,11.36796036,1703.5,1703.4,1.43358176]
[1693423002375,10.47467105,1703.5,1703.4,1.43358176]
[1693423002667,10.47467105,1703.5,1703.4,3.87708176]
[1693423002873,0.47467105,1703.5,1703.4,3.87708176]
[1693423003071,5.299,1703.6,1703.4,3.87708176]
[1693423004068,5.77697396,1703.6,1703.4,3.87708176]
[1693423010168,5.299,1703.5,1703.4,2.4435]
[1693423014378,5.299,1703.5,1703.4,3.87708176]
[1693423014579,5.299,1703.5,1703.4,2.4435]
[1693423015779,5.299,1703.5,1703.4,3.87708176]
[1693423016280,5.299,1703.5,1703.4,2.4435]
[1693423021076,5.299,1703.5,1703.4,3.87708176]
[1693423021883,5.299,1703.5,1703.4,2.4435]
[1693423028989,5.299,1703.5,1703.4,3.87708176]
[1693423030390,5.299,1703.5,1703.4,2.4435]
[1693423031586,15.299,1703.5,1703.2,7.703]
[1693423031788,5.299,1703.3,1703.1,2.6505]
[1693423031991,10.0,1703.5,1703.1,2.6505]
[1693423031992,5.299,1703.2,1703.1,2.6505]
[1693423032588,5.299,1703.2,1703.1,4.08408176]
[1693423032791,5.299,1703.3,1703.1,4.08408176]
[1693423033991,5.299,1703.3,1703.1,2.6505]
[1693423036885,5.299,1703.2,1703.0,2.6047]
[1693423038793,5.299,1703.2,1702.9,2.5857]
[1693423038986,15.299,1703.2,1702.9,2.5857]
[1693423041896,5.299,1703.1,1702.9,2.5857]
[1693423042097,5.299,1703.1,1702.9,4.01928176]
[1693423043199,5.299,1703.1,1702.9,5.54776411]
[1693423048898,5.299,1703.1,1702.9,4.01928176]
[1693423057006,5.76350581,1703.1,1702.9,4.01928176]
[1693423059107,5.76350581,1703.1,1702.9,2.5857]
[1693423061005,5.76350581,1703.1,1703.0,1.43358176]
[1693423070813,0.47064353,1703.3,1703.0,9.00251824]
[1693423071018,6.17893725,1703.5,1703.2,5.299]
[1693423071218,6.17893725,1703.5,1703.3,3.70351824]
[1693423071420,6.17893725,1703.5,1703.3,6.28731824]
[1693423071913,0.87993725,1703.5,1703.3,11.58631824]
[1693423072115,10.67984998,1703.6,1703.3,11.58631824]
[1693423072615,5.299,1703.6,1703.3,11.58631824]
[1693423074015,5.75976398,1703.6,1703.3,11.58631824]
[1693423076316,6.64872008,1703.6,1703.3,11.58631824]
[1693423076516,0.46076398,1703.6,1703.4,5.299]
[1693423076715,5.29900001,1703.7,1703.5,3.70351824]
[1693423077015,5.29900001,1703.7,1703.5,6.36101824]
[1693423080323,5.77233831,1703.7,1703.5,6.36101824]
[1693423082022,0.47333831,1703.7,1703.5,11.66001824]
[1693423089626,5.77233831,1703.7,1703.4,5.299]
[1693423089924,5.299,1703.5,1703.2,10.4636]
[1693423091220,5.299,1703.5,1703.3,1.43358176]
[1693423093825,5.299,1703.5,1703.2,10.4636]
[1693423094026,7.8609,1703.5,1703.2,10.4636]
[1693423097124,7.8609,1703.5,1703.3,1.43358176]
[1693423102038,2.5619,1703.5,1703.3,6.73258176]
[1693423102826,3.029221,1703.5,1703.3,6.73258176]
[1693423107941,8.328221,1703.5,1703.3,1.43358176]
[1693423111251,8.328221,1703.5,1703.2,12.73353648]
[1693423112652,8.328221,1703.5,1703.3,1.43358176]
[1693423112853,8.328221,1703.5,1703.4,2.5271]
[1693423126261,5.766321,1703.5,1703.4,2.5271]
[1693423126562,5.766321,1703.5,1703.4,4.79703648]
[1693423129263,0.467321,1703.5,1703.4,10.09603648]
[1693423129561,11.15318829,1703.7,1703.4,10.09603648]
[1693423129761,11.15318829,1703.7,1703.5,1.43358176]
[1693423131762,11.15318829,1703.7,1703.6,2.4185]
[1693423140170,5.77233831,1703.7,1703.6,2.4185]
[1693423140665,11.15318829,1703.7,1703.6,2.4185]
[1693423151769,16.54568013,1703.7,1703.6,2.4185]
[1693423151974,11.16483015,1703.7,1703.6,2.4185]
[1693423159678,11.16483015,1703.7,1703.4,2.5101]
[1693423159884,5.299,1703.6,1703.4,2.5101]
[1693423162882,5.299,1703.6,1703.4,5.0073]
[1693423165277,5.299,1703.6,1703.5,1.43358176]
[1693423165686,5.299,1703.6,1703.4,5.0073]
[1693423165887,5.299,1703.6,1703.5,1.43358176]
[1693423167085,10.69149184,1703.6,1703.5,1.43358176]
[1693423167287,5.299,1703.6,1703.5,1.43358176]
[1693423172590,5.299,1703.6,1703.4,7.27723648]
[1693423174391,5.299,1703.6,1703.4,3.70351824]
[1693423174692,10.69149184,1703.5,1703.0,6.83261665]
[1693423174888,10.69149184,1703.4,1703.1,5.0374]
[1693423175089,13.23419184,1703.4,1703.1,5.0374]
[1693423175692,7.8417,1703.4,1703.1,5.0374]
[1693423181891,5.299,1703.3,1703.1,5.0374]
[1693423182788,5.299,1703.3,1703.1,6.47098176]
[1693423184696,5.299,1703.3,1703.1,5.0374]
[1693423184898,5.299,1703.2,1703.1,2.5533]
[1693423189696,5.299,1703.2,1703.1,3.98688176]
[1693423190603,0.4615258,1703.4,1703.1,9.28588176]
[1693423190801,16.16385247,1703.5,1703.2,5.299]
[1693423191002,6.16385247,1703.5,1703.3,3.70351824]
[1693423191201,6.16385247,1703.5,1703.3,6.23681824]
[1693423191804,5.299,1703.5,1703.3,6.23681824]
[1693423192003,0.4780882,1703.5,1703.3,11.53581824]
[1693423192305,7.7128,1703.6,1703.3,11.53581824]
[1693423193406,5.77233831,1703.7,1703.4,5.299]
[1693423193608,5.77233831,1703.7,1703.5,3.70351824]
[1693423194502,0.47333831,1703.7,1703.6,5.299]
[1693423195006,0.47333831,1703.7,1703.6,7.8167]
[1693423201912,0.47333831,1703.7,1703.6,2.5177]
[1693423202316,5.77233831,1703.7,1703.6,2.5177]
[1693423204212,5.77233831,1703.7,1703.5,1.43358176]
[1693423204415,5.77233831,1703.7,1703.4,2.4507]
[1693423206321,5.77233831,1703.7,1703.5,1.43358176]
[1693423206920,5.77233831,1703.7,1703.5,3.83338176]
[1693423207222,5.77233831,1703.7,1703.6,2.26993648]
[1693423211518,5.77233831,1703.7,1703.5,3.83338176]
[1693423211920,0.47333831,1703.7,1703.5,3.83338176]
[1693423215333,5.74899999,1703.6,1703.5,3.38338177]
[1693423215622,5.74899999,1703.6,1703.4,4.72063648]
[1693423216821,5.299,1703.5,1703.4,2.4507]
[1693423224029,5.299,1703.5,1703.4,3.88428176]
[1693423229132,5.299,1703.5,1703.4,2.4507]
[1693423229835,6.63094512,1703.5,1703.4,2.4507]
[1693423231932,1.33194512,1703.5,1703.4,2.4507]
[1693423232134,0.00301777,1703.5,1703.4,2.4507]
[1693423232634,0.00301777,1703.5,1703.4,3.88428176]
[1693423236637,0.00301777,1703.5,1703.4,6.50748176]
[1693423243744,0.88338052,1703.5,1703.4,6.50748176]
[1693423244146,1.36432596,1703.5,1703.4,6.50748176]
[1693423248245,1.81432595,1703.5,1703.4,6.50748176]
[1693423248950,1.36432596,1703.5,1703.4,6.50748176]
[1693423250152,1.81432595,1703.5,1703.4,6.50748176]
[1693423252049,7.11332595,1703.5,1703.4,6.50748176]
[1693423252244,7.11332595,1703.5,1703.4,5.0739]
[1693423256254,7.11332595,1703.5,1703.4,6.50748176]
[1693423256451,7.11332595,1703.5,1703.4,5.0739]
[1693423257162,6.66332596,1703.5,1703.4,6.50748176]
[1693423257362,7.11332595,1703.5,1703.4,6.50748176]
[1693423258560,7.11332595,1703.5,1703.4,5.0739]
[1693423261567,7.11332595,1703.5,1703.4,2.4507]
[1693423261864,7.11332595,1703.5,1703.3,2.6074]
[1693423263564,7.11332595,1703.5,1703.2,2.4366]
[1693423263863,19.69772595,1703.5,1703.2,2.4366]
[1693423264060,5.299,1703.3,1703.2,2.4366]
[1693423264258,5.74899999,1703.3,1703.1,2.6074]
[1693423264462,5.299,1703.2,1703.1,2.6074]
[1693423264964,5.30199196,1703.2,1703.1,2.6074]
[1693423267664,5.30199196,1703.2,1703.0,3.97021665]
[1693423267864,0.44999999,1703.1,1703.0,2.4366]
[1693423269068,0.45298469,1703.1,1703.0,2.4366]
[1693423279577,5.75198469,1703.1,1702.6,1.53361665]
[1693423279874,10.45298469,1703.1,1702.8,4.9392]
[1693423280068,5.299,1702.9,1702.8,4.9392]
[1693423280273,5.74899999,1702.9,1702.8,4.9392]
[1693423281180,5.75197855,1702.9,1702.8,4.9392]
[1693423287986,5.75197855,1702.9,1702.8,2.4468]
[1693423290487,5.75197855,1702.9,1702.6,2.5778]
[1693423290689,5.299,1702.7,1702.6,5.2022]
[1693423290887,5.74899999,1702.7,1702.6,5.2022]
[1693423291088,5.75197555,1702.7,1702.6,5.2022]
[1693423293686,5.30197556,1702.7,1702.6,6.63578176]
[1693423294182,5.75197555,1702.7,1702.6,5.2022]
[1693423294583,5.75197555,1702.7,1702.6,6.63578176]
[1693423295179,0.45297555,1702.7,1702.6,5.2022]
[1693423295585,5.75197555,1702.7,1702.6,5.2022]
[1693423297185,5.75197555,1702.7,1702.6,6.73267123]
[1693423299088,5.75197555,1702.7,1702.6,9.6705032]
[1693423300488,4.87062604,1702.7,1702.6,11.10408496]
[1693423302187,4.87062604,1702.7,1702.6,9.6705032]
[1693423302389,4.87062604,1702.7,1702.6,6.73267123]
[1693423302589,4.87062604,1702.7,1702.6,9.67057277]
[1693423302791,4.87062604,1702.7,1702.6,11.10415453]
[1693423303797,5.33654093,1702.7,1702.6,11.10415453]
[1693423303996,5.33654093,1702.7,1702.6,13.39986138]
[1693423304196,5.33654093,1702.7,1702.6,11.86939015]
[1693423304596,5.33654093,1702.7,1702.6,13.40070737]
[1693423304994,5.33654093,1702.7,1702.6,11.86939015]
[1693423305293,5.33654093,1702.7,1702.6,13.40100402]
[1693423305496,5.33654093,1702.7,1702.6,11.96742226]
[1693423305797,5.33654093,1702.7,1702.6,11.86939015]
[1693423306400,5.33654093,1702.7,1702.6,13.40112678]
[1693423307298,5.33654093,1702.7,1702.6,11.86939015]
[1693423307299,0.46591489,1702.7,1702.6,11.86939015]
[1693423307598,5.75782988,1702.9,1702.6,11.86939015]
[1693423307799,5.75782988,1702.9,1702.7,3.80155565]
[1693423308294,5.75782988,1702.9,1702.7,7.53084426]
[1693423308501,0.45882988,1702.9,1702.8,1.53161917]